bitfinex/quotes_SOLUSD_20250814
["timestamp","ask_amount","ask_price","bid_price","bid_amount"]
[1755184469267,51.74057823,196.03,195.99,0.68]
[1755184469472,26.0,196.01,196.0,0.68]
[1755184469785,39.4,196.02,196.0,0.68]
[1755184470082,51.74057823,196.02,195.95,5.1332302]
[1755184470387,12.34057823,195.98,195.95,0.03]
[1755184470584,39.4,195.98,195.95,0.03]
[1755184470753,39.4,195.98,195.96,0.71]
[1755184471153,12.34057823,195.97,195.95,0.03]
[1755184471350,39.4,195.96,195.95,0.03]
[1755184471550,39.4,195.96,195.95,0.74]
[1755184472565,82.84366049,195.96,195.95,0.03]
[1755184474091,77.74057823,195.96,195.95,0.03]
[1755184474279,26.0,195.99,195.95,0.74]
[1755184474466,65.4,195.99,195.95,5.84320218]
[1755184474666,39.4,195.99,195.95,5.84320218]
[1755184474890,39.4,195.99,195.96,0.71]
[1755184475094,39.4,195.99,195.97,0.71]
[1755184475267,39.4,195.99,195.98,0.71]
[1755184475463,12.34057823,196.02,195.98,0.71]
[1755184475668,0.06,196.03,195.98,0.71]
[1755184475669,0.06,196.03,196.01,12.34057823]
[1755184475966,0.06,196.03,196.02,0.71]
[1755184476177,17.5018883,196.03,195.98,0.71]
[1755184476505,12.34057823,195.99,195.95,0.74]
[1755184476791,51.74057823,195.99,195.96,0.71]
[1755184477005,39.4,195.99,195.96,0.71]
[1755184477293,39.4,195.99,195.97,0.71]
[1755184477666,39.4,195.99,195.95,0.03]
[1755184477872,39.4,196.02,195.98,0.71]
[1755184478174,26.0,196.0,195.99,0.71]
[1755184478367,39.4,196.02,195.99,13.05057823]
[1755184478681,0.06,196.05,196.01,12.34057823]
[1755184478884,0.06,196.05,196.04,12.34057823]
[1755184479083,0.06,196.05,196.04,0.71]
[1755184479293,0.06,196.05,196.01,0.71]
[1755184479500,12.40057823,196.05,196.01,0.71]
[1755184479804,12.34057823,196.02,195.97,0.71]
[1755184479988,38.34057823,196.01,195.95,5.13333508]
[1755184480180,77.74057823,196.01,195.97,0.71]
[1755184480379,12.34057823,196.0,195.97,0.71]
[1755184480583,12.34057823,196.0,195.95,5.13333508]
[1755184480584,17.44263727,196.0,195.95,0.03]
[1755184480785,12.34057823,195.99,195.95,0.74]
[1755184480977,12.34057823,195.98,195.95,0.74]
[1755184481173,38.34057823,195.97,195.95,0.03]
[1755184481382,12.34057823,195.96,195.95,0.03]
[1755184481789,27.4467938,195.96,195.95,0.03]
[1755184482706,32.54987606,195.96,195.95,0.03]
[1755184483199,20.20929783,195.96,195.95,0.03]
[1755184483402,35.93986118,195.96,195.95,0.03]
[1755184483777,23.59928295,195.96,195.95,0.03]
[1755184484313,35.93986118,195.96,195.95,0.03]
[1755184484482,36.35986118,195.96,195.95,0.03]
[1755184485396,24.01928295,195.96,195.95,0.03]
[1755184485701,35.93986118,195.96,195.95,0.03]
[1755184485878,75.33986118,195.96,195.95,0.03]
[1755184486073,60.23364561,195.96,195.95,0.03]
[1755184486801,47.89306738,195.96,195.95,0.03]
[1755184487169,60.23364561,195.96,195.95,0.03]
[1755184487395,47.89306738,195.96,195.95,0.03]
[1755184487713,26.0,195.96,195.95,0.74]
[1755184487879,12.34057823,196.0,195.95,0.74]
[1755184488073,26.0,195.96,195.95,0.03]
[1755184488393,26.0,195.96,195.95,0.74]
[1755184488605,12.34057823,196.0,195.95,0.74]
[1755184488786,12.34057823,195.98,195.95,0.74]
[1755184489101,12.34057823,195.96,195.95,0.74]
[1755184489298,12.34057823,195.96,195.95,0.03]
[1755184489990,30.83839256,195.96,195.95,0.03]
[1755184490602,35.94147482,195.96,195.95,0.03]
[1755184490789,36.36147482,195.96,195.95,0.03]
[1755184490988,36.36147482,195.96,195.93,0.03]
[1755184491195,12.34057823,195.94,195.93,0.03]
[1755184491395,15.73217699,195.94,195.93,0.03]
[1755184491775,30.83839256,195.94,195.93,0.03]
[1755184492605,35.9419957,195.94,195.93,0.03]
[1755184493106,8.4952019,195.94,195.93,0.03]
[1755184493289,71.95039694,195.94,195.93,0.03]
[1755184493494,51.74057823,195.94,195.93,0.03]
[1755184493694,39.4,195.94,195.93,0.03]
[1755184493892,39.4,195.94,195.93,0.74]
[1755184494092,5.10308376,195.96,195.93,0.74]
[1755184494410,77.74057823,195.94,195.93,0.03]
[1755184494778,70.50360314,195.94,195.93,0.03]
[1755184495002,65.4,195.94,195.93,0.03]
[1755184495508,77.74057823,195.94,195.93,0.03]
[1755184495703,65.4,195.94,195.93,0.74]
[1755184495905,7.76177269,196.0,195.93,13.08057823]
[1755184496109,5.70364883,196.05,195.94,0.71]
[1755184496110,51.74057823,195.99,195.94,0.71]
[1755184496309,38.34057823,195.96,195.93,0.03]
[1755184496509,26.0,195.96,195.94,0.71]
[1755184496717,39.4,195.97,195.94,0.71]
[1755184497023,39.4,195.97,195.93,17.47439834]
[1755184497187,12.34057823,195.95,195.93,0.74]
[1755184497386,51.74057823,195.94,195.93,0.03]
[1755184497906,70.23663659,195.94,195.93,0.03]
[1755184498326,70.65663659,195.94,195.93,0.03]
[1755184498802,75.76023973,195.94,195.93,0.03]
[1755184499588,75.76023973,195.94,195.91,0.03]
[1755184499589,26.0,195.92,195.91,0.03]
[1755184499912,104.23752541,195.92,195.91,0.03]
[1755184500095,100.42211719,195.92,195.9,0.03]
[1755184500317,26.0,195.83,195.77,0.71]
[1755184500493,26.0,195.79,195.77,0.71]
[1755184500690,39.4,195.78,195.77,0.71]
[1755184500893,56.84835226,195.78,195.74,0.66]
[1755184501098,26.0,195.75,195.71,17.45015013]
[1755184501395,26.0,195.75,195.72,12.34057823]
[1755184501788,26.0,195.75,195.73,0.66]
[1755184501987,26.0,195.75,195.74,0.66]
[1755184502287,38.34057823,195.75,195.71,0.69]
[1755184502493,12.34057823,195.72,195.71,0.69]
[1755184502694,39.4,195.72,195.71,0.69]
[1755184504798,26.0,195.74,195.71,18.14017917]
[1755184505001,39.4,195.76,195.73,12.34057823]
[1755184505323,39.42,195.78,195.74,0.66]
[1755184505530,12.34057823,195.82,195.76,12.34057823]
[1755184505820,39.42,195.81,195.77,13.00057823]
[1755184506023,39.42,195.82,195.78,0.66]
[1755184506320,39.42,195.82,195.79,0.66]
[1755184506498,39.42,195.84,195.79,13.00057823]
[1755184506694,12.34057823,195.83,195.8,0.66]
[1755184506900,51.76057823,195.82,195.77,0.66]
[1755184507116,51.76057823,195.82,195.76,17.44883935]
[1755184507117,39.42,195.82,195.78,0.66]
[1755184507326,39.42,195.82,195.79,0.66]
[1755184507625,16.94262308,195.89,195.79,0.66]
[1755184507626,39.42,195.84,195.79,0.66]
[1755184507814,39.42,195.85,195.8,12.34057823]
[1755184508020,39.42,195.87,195.82,12.34057823]
[1755184508223,39.42,195.87,195.83,0.66]
[1755184508420,36.72,195.96,195.86,12.34057823]
[1755184508600,36.72,195.96,195.87,13.00057823]
[1755184508601,12.34057823,195.94,195.87,13.00057823]
[1755184508918,12.34057823,195.94,195.8,15.10621557]
[1755184508919,39.42,195.94,195.89,12.34057823]
[1755184509098,39.42,195.94,195.9,0.66]
[1755184509295,39.42,195.94,195.91,0.66]
[1755184509542,20.26822744,196.01,195.92,0.66]
[1755184509701,3.37016949,196.0,195.95,12.34057823]
[1755184509904,12.34057823,195.98,195.92,13.00057823]
[1755184510113,12.34057823,195.98,195.87,39.42]
[1755184510114,39.42,196.0,195.94,12.34057823]
[1755184510311,51.76057823,196.0,195.95,0.66]
[1755184510522,39.42,196.0,195.92,13.00057823]
[1755184510696,39.42,196.0,195.96,0.66]
[1755184510895,38.34057823,195.97,195.92,0.66]
[1755184511125,38.34057823,195.97,195.87,5.10542706]
[1755184511126,12.34057823,195.95,195.89,12.34057823]
[1755184511433,65.42,195.97,195.89,0.66]
[1755184511434,12.34057823,195.94,195.89,0.66]
[1755184511636,65.42,195.97,195.89,12.34057823]
[1755184511932,65.42,195.97,195.9,0.66]
[1755184512098,77.76057823,195.97,195.9,0.66]
[1755184512301,0.06,196.01,195.94,12.34057823]
[1755184512500,0.06,196.01,195.97,12.34057823]
[1755184512733,0.06,196.01,195.98,0.66]
[1755184512902,12.34057823,195.99,195.94,0.66]
[1755184513108,12.34057823,195.99,195.92,13.00057823]
[1755184513109,12.34057823,195.98,195.92,13.00057823]
[1755184513427,12.34057823,195.95,195.92,0.66]
[1755184513806,51.76057823,195.96,195.92,0.66]
[1755184514030,39.42,195.96,195.93,0.66]
[1755184514327,39.42,195.96,195.94,0.66]
[1755184514636,39.42,195.96,195.95,0.66]
[1755184514934,0.06,195.97,195.95,0.66]
[1755184515305,0.06,195.97,195.96,0.66]
[1755184515628,0.06,195.97,195.91,5.10412417]
[1755184515834,38.34057823,195.96,195.9,13.00057823]
[1755184516130,38.34057823,195.96,195.93,12.34057823]
[1755184516131,26.0,195.96,195.93,12.34057823]
[1755184516349,0.06,195.97,195.94,0.66]
[1755184517024,38.34057823,195.95,195.88,5.76516642]
[1755184517210,26.0,195.95,195.9,12.34057823]
[1755184517410,0.06,195.97,195.91,13.00057823]
[1755184517600,0.06,195.97,195.92,12.34057823]
[1755184517804,0.06,195.97,195.93,0.66]
[1755184518034,0.06,195.97,195.94,0.66]
[1755184518335,0.06,196.01,195.96,12.34057823]
[1755184518500,0.06,196.01,195.97,0.66]
[1755184518823,17.50240524,196.01,195.92,5.10412413]
[1755184519020,17.50240524,196.01,195.95,0.66]
[1755184519021,0.06,196.01,195.95,0.66]
[1755184519227,26.0,195.99,195.95,0.66]
[1755184519446,26.0,195.99,195.96,0.66]
[1755184519620,0.06,196.01,195.96,12.34057823]
[1755184519816,0.06,196.01,195.97,0.66]
[1755184520124,12.34057823,195.98,195.93,0.66]
[1755184520334,12.34057823,195.98,195.91,17.44484091]
[1755184520635,12.34057823,195.98,195.91,17.47484091]
[1755184520840,31.10248278,195.99,195.91,12.37057823]
[1755184521050,12.34057823,195.97,195.91,17.47486011]
[1755184521256,26.0,195.99,195.93,12.34057823]
[1755184521552,0.06,196.05,195.98,12.34057823]
[1755184521856,0.06,196.05,196.02,12.34057823]
[1755184522020,0.06,196.07,196.06,26.0]
[1755184522218,0.06,196.09,196.06,39.00057823]
[1755184522436,0.06,196.09,196.07,0.66]
[1755184522635,0.06,196.09,196.05,26.0]
[1755184522817,0.06,196.09,196.08,13.00057823]
[1755184523017,0.06,196.09,196.08,18.10053743]
[1755184523312,0.06,196.09,196.05,0.66]
[1755184523516,0.06,196.09,196.07,12.34057823]
[1755184523838,0.06,196.09,196.04,17.44155495]
[1755184524039,0.06,196.09,196.04,12.34057823]
[1755184524334,0.06,196.09,196.06,12.34057823]
[1755184524640,0.06,196.09,196.06,13.00057823]
[1755184524936,0.06,196.09,196.06,5.76037364]
[1755184525137,0.06,196.09,196.06,18.10095187]
[1755184525347,0.06,196.09,196.08,12.34057823]
[1755184525638,0.06,196.09,196.05,0.66]
[1755184525839,0.06,196.09,196.02,0.66]
[1755184526141,0.06,196.09,196.02,12.34057823]
[1755184526352,12.34057823,196.08,196.01,12.34057823]
[1755184526517,26.0,196.06,196.0,13.00057823]
[1755184526727,26.0,196.06,195.99,12.34057823]
[1755184526728,38.34057823,196.06,195.99,12.34057823]
[1755184526953,26.0,196.06,196.0,12.34057823]
[1755184527127,26.0,196.06,196.0,0.66]
[1755184527328,26.0,196.06,196.0,13.00057823]
[1755184527742,31.10048733,196.06,196.0,13.00057823]
[1755184527944,38.34057823,196.06,196.0,12.34057823]
[1755184528154,12.34057823,196.06,196.0,12.34057823]
[1755184528936,5.10099979,196.04,195.98,12.34057823]
[1755184529141,17.44157802,196.04,195.98,12.34057823]
[1755184529350,17.44157802,196.04,195.97,0.66]
[1755184529662,26.0,196.01,195.95,12.34057823]
[1755184529826,26.0,196.01,195.95,0.66]
[1755184530030,26.0,196.01,195.95,13.00057823]
[1755184530229,26.0,196.01,195.95,0.66]
[1755184530426,12.34057823,196.0,195.93,12.34057823]
[1755184530631,26.0,196.01,195.96,12.34057823]
[1755184530837,26.0,196.01,195.97,13.06057823]
[1755184531038,26.0,196.01,195.98,5.82256148]
[1755184531325,26.0,196.01,195.98,0.72]
[1755184531536,26.0,196.03,196.0,12.34057823]
[1755184531754,26.0,196.03,195.98,12.34057823]
[1755184532133,26.0,196.03,195.99,0.72]
[1755184532366,0.06,196.09,196.02,12.34057823]
[1755184532531,0.06,196.09,196.04,12.34057823]
[1755184532726,26.0,196.08,196.05,0.72]
[1755184532933,0.06,196.09,196.06,5.10047944]
[1755184533158,0.06,196.09,196.07,13.06057823]
[1755184533460,0.06,196.09,196.08,13.06057823]
[1755184533753,12.40057823,196.09,196.02,92.04057823]
[1755184534064,12.34057823,196.07,196.01,92.04057823]
[1755184534269,0.55,196.09,196.01,97.14222645]
[1755184534270,12.34057823,196.08,196.01,97.14222645]
[1755184534758,0.55,196.09,196.01,92.04057823]
[1755184534960,12.34057823,196.08,196.01,92.04057823]
[1755184535164,12.34057823,196.06,196.0,0.72]
[1755184535356,12.34057823,196.04,195.98,12.34057823]
[1755184535554,12.34057823,196.04,195.97,13.06057823]
[1755184535980,12.34057823,196.05,195.99,12.34057823]
[1755184536145,12.34057823,196.06,196.0,12.34057823]
[1755184536346,17.50079753,196.07,196.0,12.34057823]
[1755184536779,12.34057823,196.06,195.99,12.34057823]
[1755184536980,12.34057823,196.04,195.98,0.72]
[1755184537289,5.10126001,196.03,195.98,0.72]
[1755184537644,5.10126001,196.03,195.98,12.34057823]
[1755184537843,12.83057823,196.02,195.95,79.7]
[1755184538147,12.83057823,196.02,195.95,92.04057823]
[1755184538683,17.44183824,196.03,195.97,12.34057823]
[1755184538980,26.0,196.05,196.0,12.34057823]
[1755184539142,26.0,196.05,196.01,13.06057823]
[1755184539346,26.0,196.05,196.01,12.34057823]
[1755184539573,26.0,196.05,196.02,0.72]
[1755184539776,26.0,196.05,196.0,5.10198999]
[1755184539777,0.06,196.07,196.03,13.06057823]
[1755184539986,0.06,196.07,196.03,0.72]
[1755184540346,12.34057823,196.06,196.0,5.10198999]
[1755184540548,12.34057823,196.03,195.98,0.72]
[1755184540748,12.34057823,196.01,195.95,5.82328352]
[1755184541065,17.44279764,196.0,195.95,0.72]
[1755184541583,17.44279764,196.0,195.94,12.34057823]
[1755184541584,17.44279764,196.0,195.93,51.72057823]
[1755184541877,17.44279764,196.0,195.94,12.34057823]
[1755184542082,17.44279764,196.0,195.93,12.34057823]
[1755184542389,12.34057823,195.99,195.93,17.4444297]
[1755184542560,12.34057823,195.98,195.92,13.06057823]
[1755184542757,12.34057823,195.99,195.92,18.1646162]
[1755184542951,12.34057823,195.99,195.93,12.34057823]
[1755184543570,12.34057823,196.0,195.93,12.34057823]
[1755184543878,26.0,196.03,195.98,12.34057823]
[1755184544258,26.0,196.03,195.99,0.72]
[1755184544579,26.0,196.03,195.99,5.82227733]
[1755184544787,26.0,196.03,195.98,79.7]
[1755184544994,43.44184164,196.03,195.98,79.7]
[1755184545178,43.44184164,196.03,195.97,92.04057823]
[1755184545776,26.0,196.03,195.98,12.34057823]
[1755184546085,12.34057823,196.02,195.97,79.7]
[1755184546292,12.34057823,196.01,195.97,79.7]
[1755184546651,17.44243852,196.01,195.97,79.7]
[1755184547256,26.0,195.97,195.91,79.73]
[1755184547463,12.34057823,195.96,195.91,0.03]
[1755184547662,12.34057823,195.92,195.91,0.03]
[1755184547866,13.00057823,195.92,195.91,0.03]
[1755184548190,54.13679357,195.97,195.91,0.03]
[1755184548386,26.0,195.93,195.91,0.03]
[1755184548762,2.042119,195.99,195.91,12.37057823]
[1755184548961,26.0,195.96,195.92,0.72]
[1755184549275,12.34057823,195.94,195.91,0.03]
[1755184549462,12.34057823,195.93,195.91,0.03]
[1755184550073,12.34057823,195.92,195.91,0.03]
[1755184550280,30.0372608,195.92,195.91,0.03]
[1755184550484,29.3772608,195.92,195.91,0.03]
[1755184551084,26.0,195.94,195.91,0.75]
[1755184551388,26.0,195.94,195.91,0.03]
[1755184552288,3.37909304,195.93,195.92,0.72]
[1755184552495,5.10308838,195.96,195.91,12.37057823]
[1755184552659,20.82275965,195.96,195.91,0.03]
[1755184552862,38.34057823,195.93,195.91,0.03]
[1755184553058,41.71967127,195.92,195.91,0.03]
[1755184553467,42.37967127,195.92,195.91,0.03]
[1755184553673,41.71967127,195.92,195.91,0.03]
[1755184554189,29.37909304,195.92,195.91,0.03]
[1755184554699,65.38,195.95,195.91,0.75]
[1755184554863,3.3772912,195.94,195.91,0.75]
[1755184555562,3.3772912,195.94,195.91,0.03]
[1755184555563,12.34057823,195.93,195.91,0.03]
[1755184555783,3.3772912,195.92,195.91,0.03]
[1755184555973,15.71786943,195.92,195.91,0.03]
[1755184556168,36.58820913,195.92,195.91,0.03]
[1755184556502,15.10621557,195.91,195.9,0.03]
[1755184556713,3.3772912,195.91,195.9,0.03]
[1755184556996,29.3772912,195.91,195.9,0.03]
[1755184557380,3.3772912,195.91,195.9,0.03]
[1755184557579,3.3772912,195.95,195.9,13.09057823]
[1755184557779,12.34057823,195.95,195.91,0.72]
[1755184557979,12.34057823,195.93,195.9,0.03]
[1755184558185,38.34057823,195.91,195.9,0.03]
[1755184558385,29.36956481,195.91,195.9,0.03]
[1755184558994,56.81635861,195.91,195.9,0.03]
[1755184559407,57.47635861,195.91,195.9,0.03]
[1755184559574,96.85635861,195.91,195.9,0.03]
[1755184560219,15.10621557,195.9,195.89,0.03]
[1755184560379,15.10621557,195.9,195.87,1e-08]
[1755184560380,53.4467938,195.88,195.87,1e-08]
[1755184560573,61.26529316,195.88,195.87,1e-08]
[1755184560774,99.97529316,195.88,195.87,1e-08]
[1755184561008,41.71014304,195.88,195.87,1e-08]
[1755184561178,29.36956481,195.88,195.87,1e-08]
[1755184561579,3.36956481,195.88,195.87,0.68000001]
[1755184561780,12.75714134,195.97,195.87,13.02057824]
[1755184561781,3.36956481,195.92,195.87,13.02057824]
[1755184562078,53.4467938,195.88,195.87,1e-08]
[1755184562395,36.6236934,195.88,195.87,1e-08]
[1755184562605,76.3236934,195.88,195.87,1e-08]
[1755184562921,41.10621557,195.84,195.83,1e-08]
[1755184563273,41.10621557,195.84,195.83,0.68000001]
[1755184563274,26.0,195.84,195.83,0.68000001]
[1755184563591,4.1966449,195.92,195.83,13.02057824]
[1755184563788,26.0,195.87,195.83,0.68000001]
[1755184564101,26.0,195.87,195.83,1e-08]
[1755184564102,78.20057823,195.87,195.83,1e-08]
[1755184564327,38.34057823,195.84,195.83,1e-08]
[1755184564498,109.76747457,195.84,195.81,0.03]
[1755184564699,109.76747457,195.84,195.69,5.11009781]
[1755184564700,41.10621557,195.79,195.69,0.68]
[1755184564906,38.34057823,195.74,195.69,0.68]
[1755184565106,39.92,195.73,195.69,0.68]
[1755184565302,39.92,195.73,195.7,0.68]
[1755184565522,26.0,195.72,195.71,0.68]
[1755184565825,12.34057823,195.81,195.71,0.68]
[1755184566015,26.0,195.78,195.73,12.34057823]
[1755184566208,26.0,195.74,195.7,0.68]
[1755184566614,40.06,195.73,195.66,0.68]
[1755184566814,26.0,195.7,195.66,0.68]
[1755184567018,26.0,195.7,195.67,13.02057823]
[1755184567326,26.0,195.7,195.68,0.68]
[1755184567525,12.34057823,195.79,195.69,12.34057823]
[1755184567732,5.06519821,195.81,195.74,12.34057823]
[1755184567968,3.33900496,195.81,195.75,13.02057823]
[1755184568100,57.48743641,195.82,195.75,12.34057823]
[1755184568299,12.34057823,195.78,195.71,0.68]
[1755184568523,52.40057823,195.77,195.71,0.68]
[1755184568732,40.06,195.77,195.71,13.02057823]
[1755184568926,40.18,195.79,195.75,12.34057823]
[1755184569126,52.54057823,195.82,195.76,0.68]
[1755184569331,78.54057823,195.82,195.76,0.68]
[1755184569644,12.34057823,195.77,195.71,0.68]
[1755184569798,78.54057823,195.77,195.71,0.68]
[1755184570121,40.22,195.78,195.75,17.44913506]
[1755184570310,12.34057823,195.77,195.73,0.68]
[1755184570511,12.34057823,195.76,195.71,0.68]
[1755184570715,58.41759372,195.76,195.72,0.68]
[1755184571117,26.0,195.8,195.73,0.68]
[1755184571425,40.4,195.8,195.73,0.68]
[1755184571618,18.03759372,195.87,195.79,18.03759372]
[1755184571930,15.322931,195.89,195.83,18.03759372]
[1755184572228,40.42,195.93,195.86,23.14325225]
[1755184572525,26.0,195.9,195.87,0.68]
[1755184572938,18.03759372,195.91,195.87,0.68]
[1755184573302,18.03759372,195.9,195.84,0.68]
[1755184573508,18.03759372,195.89,195.84,0.68]
[1755184573927,18.03759372,195.89,195.8,0.68]
[1755184573928,18.03759372,195.85,195.8,0.68]
[1755184574133,31.1059408,195.86,195.81,18.71759372]
[1755184574329,18.03759372,195.85,195.81,0.68]
[1755184574537,18.03759372,195.83,195.77,0.68]
[1755184574830,40.4,195.85,195.77,0.68]
[1755184575033,40.4,195.85,195.77,18.71759372]
[1755184575217,40.4,195.85,195.77,18.03759372]
[1755184575417,40.38,195.88,195.79,15.10621557]
[1755184575742,4.9066449,195.93,195.78,26.68]
[1755184575743,15.316672,195.96,195.87,18.03759372]
[1755184576029,0.06,195.9,195.86,0.68]
[1755184576233,0.06,195.9,195.87,0.68]
[1755184576420,26.0,195.89,195.87,0.68]
[1755184577142,44.03759372,195.89,195.83,0.68]
[1755184577316,18.03759372,195.88,195.83,0.68]
[1755184577523,26.0,195.89,195.84,0.68]
[1755184577833,0.06,195.9,195.86,18.03759372]
[1755184578037,0.06,195.9,195.87,0.68]
[1755184578236,0.06,195.9,195.81,5.10694207]
[1755184578437,18.03759372,195.87,195.83,0.68]
[1755184578735,40.56,195.9,195.85,18.03759372]
[1755184579041,40.56,195.9,195.86,0.68]
[1755184579249,58.59759372,195.9,195.86,0.68]
[1755184579420,18.03759372,195.89,195.83,18.06759372]
[1755184579619,26.06,195.9,195.86,18.71759372]
[1755184579811,26.06,195.9,195.87,0.68]
[1755184580239,26.06,195.9,195.84,18.71759372]
[1755184580420,49.2023036,195.9,195.84,18.71759372]
[1755184580621,49.2023036,195.9,195.83,5.13645449]
[1755184580827,49.2023036,195.9,195.84,18.03759372]
[1755184581030,18.03759372,195.88,195.83,0.71]
[1755184581221,40.5,195.89,195.83,0.03]
[1755184581431,18.03759372,195.86,195.83,0.03]
[1755184582035,18.03759372,195.84,195.83,0.03]
[1755184582339,42.30269903,195.84,195.83,0.03]
[1755184582841,52.48648346,195.84,195.83,0.03]
[1755184583431,26.0,195.84,195.83,0.03]
[1755184583941,29.34457665,195.84,195.83,0.03]
[1755184584325,52.48837952,195.84,195.83,0.03]
[1755184584920,41.59459509,195.84,195.83,0.03]
[1755184585118,42.30459509,195.84,195.83,0.03]
[1755184585528,41.59459509,195.84,195.83,0.03]
[1755184585922,42.30459509,195.84,195.83,0.03]
[1755184586122,41.10621557,195.81,195.8,0.03]
[1755184586344,108.70537741,195.81,195.8,0.03]
[1755184586644,15.10621557,195.8,195.77,0.03]
[1755184586850,59.14380929,195.78,195.77,0.03]
[1755184587033,103.57838594,195.78,195.77,0.03]
[1755184587231,107.77503084,195.78,195.77,1e-08]
[1755184587537,103.57838594,195.78,195.65,23.82874185]
[1755184587842,18.03759372,195.72,195.65,18.71759372]
[1755184588050,58.39759372,195.71,195.65,18.71759372]
[1755184588246,40.34,195.7,195.65,0.68]
[1755184588458,45.45000864,195.7,195.66,0.68]
[1755184588759,18.03759372,195.77,195.69,18.03759372]
[1755184588944,26.0,195.74,195.7,18.71759372]
[1755184589122,26.0,195.74,195.71,0.68]
[1755184589545,40.36,195.75,195.72,0.68]
[1755184589724,18.03759372,195.8,195.73,0.68]
[1755184590048,4.18466901,195.82,195.73,0.68]
[1755184590049,18.03759372,195.78,195.73,0.68]
[1755184590226,3.34442223,195.77,195.73,0.68]
[1755184590427,26.0,195.76,195.7,18.03759372]
[1755184590629,44.03759372,195.76,195.7,18.71759372]
[1755184590830,84.39759372,195.76,195.7,5.78975821]
[1755184591059,66.36,195.76,195.7,5.10975821]
[1755184591353,66.36,195.76,195.71,0.68]
[1755184591556,3.34196444,195.75,195.7,18.03759372]
[1755184591850,18.03759372,195.81,195.72,0.68]
[1755184592056,3.34303986,195.8,195.77,18.03759372]
[1755184592351,3.34303986,195.8,195.79,23.14510687]
[1755184592658,40.36,195.85,195.79,23.82510687]
[1755184592839,18.03759372,195.87,195.81,18.03759372]
[1755184593042,3.34526896,195.86,195.82,0.68]
[1755184593232,0.06,195.9,195.85,18.03759372]
[1755184593430,0.06,195.9,195.86,0.68]
[1755184593431,3.40586585,195.9,195.86,0.68]
[1755184593651,26.0,195.88,195.87,0.68]
[1755184593864,3.34586585,195.88,195.87,0.68]
[1755184594026,40.36,195.89,195.83,0.68]
[1755184594229,18.03759372,195.84,195.78,0.68]
[1755184594638,40.36,195.88,195.78,18.55700883]
[1755184594938,3.34783882,195.87,195.79,15.78621557]
[1755184595148,0.06,195.9,195.78,17.87700883]
[1755184595149,26.0,195.88,195.8,0.68]
[1755184595463,18.03759372,195.86,195.8,18.71759372]
[1755184595773,3.35007644,195.85,195.8,0.68]
[1755184595969,26.0,195.86,195.81,18.71759372]
[1755184596129,0.06,195.9,195.85,18.03759372]
[1755184596335,3.41012673,195.9,195.86,0.68]
[1755184596537,3.41012673,195.9,195.86,5.78565707]
[1755184596777,3.41012673,195.9,195.87,0.68]
[1755184596934,18.09759372,195.9,195.84,18.71759372]
[1755184597137,0.06,195.9,195.85,0.68]
[1755184597448,0.06,195.9,195.86,0.68]
[1755184597628,18.03759372,195.89,195.83,18.71759372]
[1755184598471,5.16467326,195.9,195.88,23.14276014]
[1755184598472,0.06,195.9,195.88,23.14276014]
[1755184598676,0.06,195.9,195.88,5.10516642]
[1755184598855,0.06,195.9,195.89,18.71759372]
[1755184600280,0.06,195.9,195.89,0.68]
[1755184600456,0.06,195.9,195.87,18.03759372]
[1755184600664,0.06,195.9,195.87,18.71759372]